[Event "Titled Tuesday Blitz June 1 2021"]
[White "Melian, Juan Sebastian"]
[Black "Pajeken, Jakob Leon"]
[WhiteFideId "3706575"]
[BlackFideId "12942839"]
[WhiteElo "1563"]
[BlackElo "2024"]
[Result "0-1"]
[Round "11"]
[TimeControl "180+1"]
[Date "2021.06.01"]
[WhiteClock "0:00:12"]
[BlackClock "0:00:43"]

1. d4 {[%clk 0:03:00]}  d5 {[%clk 0:02:59]} 2. Nf3 {[%clk 0:03:01]}  Nf6 {[%clk 0:02:58]} 3. c3 {[%clk 0:03:01]}  c5 {[%clk 0:02:56]} 4. Bg5 {[%clk 0:03:01]}  Nbd7 {[%clk 0:02:55]} 5. e3 {[%clk 0:03:01]}  e6 {[%clk 0:02:53]} 6. Nbd2 {[%clk 0:02:58]}  Be7 {[%clk 0:02:51]} 7. Bd3 {[%clk 0:02:57]}  b6 {[%clk 0:02:49]} 8. O-O {[%clk 0:02:55]}  Bb7 {[%clk 0:02:48]} 9. Ne5 {[%clk 0:02:55]}  h6 {[%clk 0:02:40]} 10. Bh4 {[%clk 0:02:55]}  Nxe5 {[%clk 0:02:34]} 11. dxe5 {[%clk 0:02:55]}  Nd7 {[%clk 0:02:34]} 12. Bxe7 {[%clk 0:02:56]}  Qxe7 {[%clk 0:02:34]} 13. f4 {[%clk 0:02:57]}  g5 {[%clk 0:02:33]} 14. Qe2 {[%clk 0:02:52]}  O-O-O {[%clk 0:02:24]} 15. a4 {[%clk 0:02:50]}  f5 {[%clk 0:02:18]} 16. exf6 {[%clk 0:02:38]}  Nxf6 {[%clk 0:02:16]} 17. Nf3 {[%clk 0:02:38]}  Nd7 {[%clk 0:02:10]} 18. a5 {[%clk 0:02:36]}  c4 {[%clk 0:02:09]} 19. Bc2 {[%clk 0:02:34]}  e5 {[%clk 0:02:08]} 20. axb6 {[%clk 0:02:27]}  axb6 {[%clk 0:02:05]} 21. fxe5 {[%clk 0:02:10]}  Nxe5 {[%clk 0:02:04]} 22. Nd4 {[%clk 0:02:10]}  Rhf8 {[%clk 0:02:02]} 23. Bf5+ {[%clk 0:02:08]}  Kb8 {[%clk 0:01:58]} 24. Ne6 {[%clk 0:01:47]}  Rxf5 {[%clk 0:01:56]} 25. Nxd8 {[%clk 0:01:46]}  Rxf1+ {[%clk 0:01:56]} 26. Qxf1 {[%clk 0:01:41]}  Qxd8 {[%clk 0:01:55]} 27. Qf5 {[%clk 0:01:40]}  Qd6 {[%clk 0:01:52]} 28. h3 {[%clk 0:01:28]}  Bc6 {[%clk 0:01:50]} 29. Ra6 {[%clk 0:01:20]}  Kb7 {[%clk 0:01:49]} 30. Ra1 {[%clk 0:01:15]}  Bd7 {[%clk 0:01:49]} 31. Qh7 {[%clk 0:01:12]}  Kc6 {[%clk 0:01:36]} 32. Qg8 {[%clk 0:01:01]}  Qc7 {[%clk 0:01:30]} 33. Qa8+ {[%clk 0:00:57]}  Qb7 {[%clk 0:01:30]} 34. Qh8 {[%clk 0:00:55]}  Nf7 {[%clk 0:01:27]} 35. Qf6+ {[%clk 0:00:47]}  Nd6 {[%clk 0:01:27]} 36. Rd1 {[%clk 0:00:44]}  g4 {[%clk 0:01:25]} 37. Qe5 {[%clk 0:00:44]}  Kc7 {[%clk 0:01:20]} 38. Rxd5 {[%clk 0:00:43]}  Qc6 {[%clk 0:01:21]} 39. hxg4 {[%clk 0:00:39]}  Bxg4 {[%clk 0:01:20]} 40. Qe7+ {[%clk 0:00:37]}  Qd7 {[%clk 0:01:16]} 41. Qe5 {[%clk 0:00:33]}  Be6 {[%clk 0:01:16]} 42. Rd4 {[%clk 0:00:31]}  b5 {[%clk 0:01:15]} 43. Qc5+ {[%clk 0:00:29]}  Qc6 {[%clk 0:01:12]} 44. Qa7+ {[%clk 0:00:29]}  Nb7 {[%clk 0:01:12]} 45. Qa8 {[%clk 0:00:20]}  Bc8 {[%clk 0:01:10]} 46. Qa3 {[%clk 0:00:19]}  Nc5 {[%clk 0:01:07]} 47. Qa5+ {[%clk 0:00:16]}  Qb6 {[%clk 0:01:05]} 48. Qa1 {[%clk 0:00:10]}  Bb7 {[%clk 0:01:03]} 49. Qf1 {[%clk 0:00:09]}  Qg6 {[%clk 0:01:01]} 50. Qf4+ {[%clk 0:00:08]}  Kc6 {[%clk 0:00:56]} 51. g3 {[%clk 0:00:06]}  Qe6 {[%clk 0:00:52]} 52. e4 {[%clk 0:00:05]}  Nd3 {[%clk 0:00:50]} 53. Qe3 {[%clk 0:00:05]}  Kc7 {[%clk 0:00:46]} 54. Qf3 {[%clk 0:00:02]}  Bc6 {[%clk 0:00:45]} 55. Qe3 {[%clk 0:00:02]}  Qe5 {[%clk 0:00:43]} 56. Qf3 {[%clk 0:00:02]}  Qg5 {[%clk 0:00:41]} 57. Kh2 {[%clk 0:00:02]}  Ne5 {[%clk 0:00:38]} 58. Qf4 {[%clk 0:00:02]}  Qxf4 {[%clk 0:00:37]} 59. gxf4 {[%clk 0:00:03]}  Nf3+ {[%clk 0:00:38]} 60. Kg3 {[%clk 0:00:04]}  Nxd4 {[%clk 0:00:39]} 61. cxd4 {[%clk 0:00:04]}  Bxe4 {[%clk 0:00:39]} 62. Kf2 {[%clk 0:00:05]}  b4 {[%clk 0:00:39]} 63. Ke3 {[%clk 0:00:06]}  c3 {[%clk 0:00:40]} 64. bxc3 {[%clk 0:00:06]}  bxc3 {[%clk 0:00:40]} 65. f5 {[%clk 0:00:05]}  c2 {[%clk 0:00:41]} 66. Kd2 {[%clk 0:00:06]}  Bxf5 {[%clk 0:00:41]} 67. Kc1 {[%clk 0:00:05]}  Kd6 {[%clk 0:00:42]} 68. Kd2 {[%clk 0:00:06]}  Kd5 {[%clk 0:00:43]} 69. Kc1 {[%clk 0:00:07]}  Kxd4 {[%clk 0:00:44]} 70. Kd2 {[%clk 0:00:08]}  h5 {[%clk 0:00:43]} 71. Kc1 {[%clk 0:00:09]}  h4 {[%clk 0:00:44]} 72. Kb2 {[%clk 0:00:09]}  Kd3 {[%clk 0:00:44]} 73. Kc1 {[%clk 0:00:10]}  h3 {[%clk 0:00:43]} 74. Kb2 {[%clk 0:00:11]}  h2 {[%clk 0:00:44]} 75. Ka2 {[%clk 0:00:12]}  h1=Q {[%clk 0:00:43]} 76. Kb3 {[%clk 0:00:12]} 0-1


[Site "https://www.chess.com"]

[Event "Titled Tuesday Blitz June 1 2021"]
[White "Mirzoev, Azer"]
[Black "Sinitsina, Anastassia"]
[WhiteFideId "13400304"]
[BlackFideId "4504640"]
[WhiteElo "2525"]
[BlackElo "2179"]
[Result "1-0"]
[Round "11"]
[TimeControl "180+1"]
[Date "2021.06.01"]
[WhiteClock "0:01:16"]
[BlackClock "0:00:49"]

1. c4 {[%clk 0:03:00]}  Nf6 {[%clk 0:02:59]} 2. Nc3 {[%clk 0:03:00]}  g6 {[%clk 0:03:00]} 3. e4 {[%clk 0:03:00]}  d6 {[%clk 0:03:00]} 4. d4 {[%clk 0:03:00]}  Bg7 {[%clk 0:03:01]} 5. f3 {[%clk 0:03:01]}  O-O {[%clk 0:03:01]} 6. Be3 {[%clk 0:03:02]}  Na6 {[%clk 0:02:52]} 7. Nge2 {[%clk 0:03:00]}  c5 {[%clk 0:02:51]} 8. d5 {[%clk 0:02:56]}  e6 {[%clk 0:02:52]} 9. Qd2 {[%clk 0:02:55]}  exd5 {[%clk 0:02:51]} 10. cxd5 {[%clk 0:02:54]}  Re8 {[%clk 0:02:51]} 11. Ng3 {[%clk 0:02:53]}  Nc7 {[%clk 0:02:50]} 12. Be2 {[%clk 0:02:48]}  Rb8 {[%clk 0:02:43]} 13. a4 {[%clk 0:02:48]}  b6 {[%clk 0:02:43]} 14. O-O {[%clk 0:02:46]}  a6 {[%clk 0:02:42]} 15. Bh6 {[%clk 0:02:45]}  Bh8 {[%clk 0:02:42]} 16. Kh1 {[%clk 0:02:37]}  b5 {[%clk 0:02:42]} 17. axb5 {[%clk 0:02:34]}  axb5 {[%clk 0:02:42]} 18. b4 {[%clk 0:02:28]}  cxb4 {[%clk 0:02:36]} 19. Na2 {[%clk 0:02:27]}  b3 {[%clk 0:02:31]} 20. Nb4 {[%clk 0:02:26]}  Bd7 {[%clk 0:02:26]} 21. Rab1 {[%clk 0:02:26]}  Ra8 {[%clk 0:02:19]} 22. Rxb3 {[%clk 0:02:25]}  Na6 {[%clk 0:02:18]} 23. Nxa6 {[%clk 0:02:21]}  Rxa6 {[%clk 0:02:18]} 24. Rxb5 {[%clk 0:02:15]}  Bxb5 {[%clk 0:02:14]} 25. Bxb5 {[%clk 0:02:14]}  Rb6 {[%clk 0:02:12]} 26. Bxe8 {[%clk 0:02:14]}  Qxe8 {[%clk 0:02:13]} 27. h3 {[%clk 0:02:09]}  Qe5 {[%clk 0:02:09]} 28. Bf4 {[%clk 0:02:07]}  Qe7 {[%clk 0:02:09]} 29. Rc1 {[%clk 0:02:05]}  Rb8 {[%clk 0:02:04]} 30. Rc6 {[%clk 0:02:02]}  Ne8 {[%clk 0:02:02]} 31. Kh2 {[%clk 0:02:00]}  Be5 {[%clk 0:01:58]} 32. Bxe5 {[%clk 0:02:00]}  Qxe5 {[%clk 0:01:58]} 33. Qc3 {[%clk 0:01:58]}  Qxc3 {[%clk 0:01:51]} 34. Rxc3 {[%clk 0:01:58]}  Kf8 {[%clk 0:01:52]} 35. Rc6 {[%clk 0:01:56]}  Ke7 {[%clk 0:01:52]} 36. Ne2 {[%clk 0:01:54]}  Kd7 {[%clk 0:01:50]} 37. Ra6 {[%clk 0:01:53]}  Rb2 {[%clk 0:01:48]} 38. Ra7+ {[%clk 0:01:49]}  Nc7 {[%clk 0:01:47]} 39. Nd4 {[%clk 0:01:48]}  Rb4 {[%clk 0:01:43]} 40. Nc6 {[%clk 0:01:47]}  Rb2 {[%clk 0:01:42]} 41. h4 {[%clk 0:01:47]}  Kc8 {[%clk 0:01:37]} 42. Kg3 {[%clk 0:01:42]}  h5 {[%clk 0:01:35]} 43. Kh3 {[%clk 0:01:36]}  Rb1 {[%clk 0:01:21]} 44. Ra2 {[%clk 0:01:32]}  Rb3 {[%clk 0:01:19]} 45. Kg3 {[%clk 0:01:30]}  Rb1 {[%clk 0:01:11]} 46. Kf4 {[%clk 0:01:30]}  Rb5 {[%clk 0:00:52]} 47. Kg5 {[%clk 0:01:20]}  Ne8 {[%clk 0:00:49]} 48. Ra8+ {[%clk 0:01:17]}  Kd7 {[%clk 0:00:49]} 49. Rd8+ {[%clk 0:01:16]} 1-0


[Site "https://www.chess.com"]

[Event "Titled Tuesday Blitz June 1 2021"]
[White "Moroni, Luca Jr"]
[Black "Demchenko, Anton"]
[WhiteFideId "865834"]
[BlackFideId "4160258"]
[WhiteElo "2491"]
[BlackElo "2593"]
[Result "0-1"]
[Round "11"]
[TimeControl "180+1"]
[Date "2021.06.01"]
[WhiteClock "0:00:04"]
[BlackClock "0:00:16"]

1. d4 {[%clk 0:03:00]}  Nf6 {[%clk 0:02:56]} 2. c4 {[%clk 0:03:01]}  g6 {[%clk 0:02:56]} 3. Nc3 {[%clk 0:03:00]}  Bg7 {[%clk 0:02:56]} 4. e4 {[%clk 0:03:00]}  d6 {[%clk 0:02:57]} 5. Bd3 {[%clk 0:03:01]}  O-O {[%clk 0:02:55]} 6. Nge2 {[%clk 0:03:00]}  Nc6 {[%clk 0:02:55]} 7. O-O {[%clk 0:03:00]}  Nd7 {[%clk 0:02:54]} 8. Bc2 {[%clk 0:03:00]}  e5 {[%clk 0:02:54]} 9. d5 {[%clk 0:03:00]}  Nb4 {[%clk 0:02:51]} 10. Bb1 {[%clk 0:03:00]}  a5 {[%clk 0:02:52]} 11. a3 {[%clk 0:02:56]}  Na6 {[%clk 0:02:52]} 12. Be3 {[%clk 0:02:56]}  Qe7 {[%clk 0:02:29]} 13. Bc2 {[%clk 0:02:55]}  Nb6 {[%clk 0:02:20]} 14. b3 {[%clk 0:02:00]}  a4 {[%clk 0:02:19]} 15. Nxa4 {[%clk 0:01:54]}  Nxa4 {[%clk 0:02:18]} 16. bxa4 {[%clk 0:01:55]}  f5 {[%clk 0:02:15]} 17. exf5 {[%clk 0:01:36]}  gxf5 {[%clk 0:02:16]} 18. f3 {[%clk 0:01:34]}  Nc5 {[%clk 0:02:13]} 19. Rb1 {[%clk 0:01:34]}  b6 {[%clk 0:02:12]} 20. f4 {[%clk 0:01:27]}  Bd7 {[%clk 0:02:07]} 21. Ng3 {[%clk 0:01:17]}  e4 {[%clk 0:01:53]} 22. Ne2 {[%clk 0:01:04]}  Nxa4 {[%clk 0:01:48]} 23. Bd4 {[%clk 0:00:36]}  Nc5 {[%clk 0:01:48]} 24. Ra1 {[%clk 0:00:35]}  Be8 {[%clk 0:01:37]} 25. Qd2 {[%clk 0:00:33]}  Ba4 {[%clk 0:01:20]} 26. Qc3 {[%clk 0:00:28]}  Bxc2 {[%clk 0:01:14]} 27. Qxc2 {[%clk 0:00:28]}  Bxd4+ {[%clk 0:01:09]} 28. Nxd4 {[%clk 0:00:29]}  Qg7 {[%clk 0:01:10]} 29. Nb5 {[%clk 0:00:18]}  Nd3 {[%clk 0:01:04]} 30. Qc3 {[%clk 0:00:17]}  Rf7 {[%clk 0:01:01]} 31. Qxg7+ {[%clk 0:00:16]}  Rxg7 {[%clk 0:01:02]} 32. g3 {[%clk 0:00:17]}  h5 {[%clk 0:01:01]} 33. Kg2 {[%clk 0:00:17]}  h4 {[%clk 0:01:01]} 34. a4 {[%clk 0:00:16]}  hxg3 {[%clk 0:00:56]} 35. hxg3 {[%clk 0:00:17]}  Kf7 {[%clk 0:00:57]} 36. Nd4 {[%clk 0:00:11]}  Kf6 {[%clk 0:00:56]} 37. Ne6 {[%clk 0:00:11]}  Rg6 {[%clk 0:00:50]} 38. Rh1 {[%clk 0:00:11]}  Rag8 {[%clk 0:00:48]} 39. Rh3 {[%clk 0:00:11]}  Re8 {[%clk 0:00:48]} 40. Kh2 {[%clk 0:00:07]}  Re7 {[%clk 0:00:43]} 41. Rh8 {[%clk 0:00:05]}  Nb2 {[%clk 0:00:25]} 42. a5 {[%clk 0:00:05]}  bxa5 {[%clk 0:00:25]} 43. Rxa5 {[%clk 0:00:06]}  Nxc4 {[%clk 0:00:26]} 44. Raa8 {[%clk 0:00:06]}  Ne3 {[%clk 0:00:20]} 45. Rhf8+ {[%clk 0:00:07]}  Rf7 {[%clk 0:00:21]} 46. Ng5 {[%clk 0:00:07]}  Rxf8 {[%clk 0:00:17]} 47. Rxf8+ {[%clk 0:00:08]}  Ke7 {[%clk 0:00:18]} 48. Rf7+ {[%clk 0:00:09]}  Ke8 {[%clk 0:00:18]} 49. Rxc7 {[%clk 0:00:08]}  Nxd5 {[%clk 0:00:17]} 50. Ra7 {[%clk 0:00:07]}  Ne3 {[%clk 0:00:17]} 51. Kg1 {[%clk 0:00:07]}  Ng4 {[%clk 0:00:17]} 52. Kf1 {[%clk 0:00:07]}  Rh6 {[%clk 0:00:17]} 53. Nf7 {[%clk 0:00:05]}  Rf6 {[%clk 0:00:15]} 54. Ng5 {[%clk 0:00:04]}  d5 {[%clk 0:00:15]} 55. Ra5 {[%clk 0:00:03]}  Rb6 {[%clk 0:00:15]} 56. Rxd5 {[%clk 0:00:03]}  Ne3+ {[%clk 0:00:15]} 57. Ke2 {[%clk 0:00:03]}  Nxd5 {[%clk 0:00:16]} 58. g4 {[%clk 0:00:04]}  fxg4 {[%clk 0:00:16]} 0-1


[Site "https://www.chess.com"]

[Event "Titled Tuesday Blitz June 1 2021"]
[White "Narayanan, Srinath"]
[Black "Heinemann, Josefine"]
[WhiteFideId "5018420"]
[BlackFideId "12900460"]
[WhiteElo "2472"]
[BlackElo "2300"]
[Result "1-0"]
[Round "11"]
[TimeControl "180+1"]
[Date "2021.06.01"]
[WhiteClock "0:00:40"]
[BlackClock "0:00:02"]

1. e4 {[%clk 0:03:00]}  e5 {[%clk 0:02:51]} 2. Nf3 {[%clk 0:03:00]}  Nc6 {[%clk 0:02:51]} 3. Bb5 {[%clk 0:03:00]}  a6 {[%clk 0:02:50]} 4. Ba4 {[%clk 0:03:00]}  Nf6 {[%clk 0:02:51]} 5. O-O {[%clk 0:03:00]}  Nxe4 {[%clk 0:02:51]} 6. d4 {[%clk 0:03:00]}  b5 {[%clk 0:02:50]} 7. Bb3 {[%clk 0:03:00]}  d5 {[%clk 0:02:50]} 8. Nxe5 {[%clk 0:03:00]}  Nxe5 {[%clk 0:02:49]} 9. dxe5 {[%clk 0:03:00]}  Be6 {[%clk 0:02:49]} 10. Be3 {[%clk 0:02:55]}  Be7 {[%clk 0:02:44]} 11. Nd2 {[%clk 0:02:54]}  Nxd2 {[%clk 0:02:41]} 12. Qxd2 {[%clk 0:02:55]}  c5 {[%clk 0:02:41]} 13. c3 {[%clk 0:02:54]}  O-O {[%clk 0:02:40]} 14. f4 {[%clk 0:02:55]}  f5 {[%clk 0:02:35]} 15. exf6 {[%clk 0:02:52]}  Rxf6 {[%clk 0:02:35]} 16. f5 {[%clk 0:02:52]}  Bf7 {[%clk 0:02:35]} 17. Rad1 {[%clk 0:02:49]}  Rd6 {[%clk 0:02:22]} 18. Bxc5 {[%clk 0:02:46]}  Rd7 {[%clk 0:02:19]} 19. Bd4 {[%clk 0:02:42]}  Bf6 {[%clk 0:02:18]} 20. Qf4 {[%clk 0:02:37]}  a5 {[%clk 0:02:13]} 21. a4 {[%clk 0:02:35]}  bxa4 {[%clk 0:02:07]} 22. Bxa4 {[%clk 0:02:36]}  Rd6 {[%clk 0:02:06]} 23. Bc5 {[%clk 0:02:27]}  Rda6 {[%clk 0:01:53]} 24. Rfe1 {[%clk 0:02:27]}  Qc8 {[%clk 0:01:43]} 25. Bf2 {[%clk 0:02:21]}  Rb8 {[%clk 0:01:31]} 26. Rd2 {[%clk 0:02:20]}  Raa8 {[%clk 0:01:24]} 27. Rde2 {[%clk 0:02:00]}  Qc4 {[%clk 0:01:16]} 28. Bg3 {[%clk 0:01:56]}  Rd8 {[%clk 0:01:03]} 29. Qxc4 {[%clk 0:01:46]}  dxc4 {[%clk 0:01:04]} 30. Bc6 {[%clk 0:01:46]}  Ra6 {[%clk 0:00:44]} 31. Bf3 {[%clk 0:01:33]}  h6 {[%clk 0:00:35]} 32. Bc7 {[%clk 0:01:33]}  Rd7 {[%clk 0:00:35]} 33. Bf4 {[%clk 0:01:30]}  Rb6 {[%clk 0:00:33]} 34. Ra1 {[%clk 0:01:28]}  Ra6 {[%clk 0:00:15]} 35. g4 {[%clk 0:01:23]}  a4 {[%clk 0:00:14]} 36. Be5 {[%clk 0:00:51]}  Bxe5 {[%clk 0:00:10]} 37. Rxe5 {[%clk 0:00:52]}  Rd2 {[%clk 0:00:08]} 38. Re2 {[%clk 0:00:50]}  Rad6 {[%clk 0:00:07]} 39. Rxa4 {[%clk 0:00:47]}  Rxe2 {[%clk 0:00:05]} 40. Bxe2 {[%clk 0:00:48]}  Rd2 {[%clk 0:00:05]} 41. Bxc4 {[%clk 0:00:48]}  Bxc4 {[%clk 0:00:06]} 42. Rxc4 {[%clk 0:00:49]}  Rxb2 {[%clk 0:00:07]} 43. Rf4 {[%clk 0:00:48]}  Kf7 {[%clk 0:00:06]} 44. Rf2 {[%clk 0:00:47]}  Rb1+ {[%clk 0:00:05]} 45. Kg2 {[%clk 0:00:47]}  Rc1 {[%clk 0:00:06]} 46. Rf3 {[%clk 0:00:47]}  Kf6 {[%clk 0:00:06]} 47. Kg3 {[%clk 0:00:43]}  Rc2 {[%clk 0:00:04]} 48. h3 {[%clk 0:00:43]}  Rc1 {[%clk 0:00:04]} 49. Kf4 {[%clk 0:00:43]}  Re1 {[%clk 0:00:03]} 50. Re3 {[%clk 0:00:42]}  Rc1 {[%clk 0:00:03]} 51. Ke4 {[%clk 0:00:42]}  Kg5 {[%clk 0:00:02]} 52. Rd3 {[%clk 0:00:41]}  g6 {[%clk 0:00:01]} 53. fxg6 {[%clk 0:00:39]}  Kxg6 {[%clk 0:00:02]} 54. Kd5 {[%clk 0:00:40]}  Kg5 {[%clk 0:00:02]} 55. c4 {[%clk 0:00:40]}  Rc2 {[%clk 0:00:02]} 56. c5 {[%clk 0:00:40]} 1-0


[Site "https://www.chess.com"]

[Event "Titled Tuesday Blitz June 1 2021"]
[White "Nazaretyan, Tigran"]
[Black "Shuvalov, Evgenij"]
[WhiteFideId "24162345"]
[BlackFideId "4187237"]
[WhiteElo "2247"]
[BlackElo "2163"]
[Result "1-0"]
[Round "11"]
[TimeControl "180+1"]
[Date "2021.06.01"]
[WhiteClock "0:01:16"]
[BlackClock "0:00:38"]

1. d4 {[%clk 0:03:00]}  Nf6 {[%clk 0:02:59]} 2. c4 {[%clk 0:03:00]}  g6 {[%clk 0:02:59]} 3. Nc3 {[%clk 0:03:00]}  d5 {[%clk 0:02:59]} 4. Nf3 {[%clk 0:02:58]}  Bg7 {[%clk 0:02:59]} 5. Bg5 {[%clk 0:02:58]}  Ne4 {[%clk 0:02:58]} 6. Bh4 {[%clk 0:02:58]}  Nxc3 {[%clk 0:02:58]} 7. bxc3 {[%clk 0:02:59]}  c5 {[%clk 0:02:57]} 8. e3 {[%clk 0:02:57]}  Nc6 {[%clk 0:02:47]} 9. cxd5 {[%clk 0:02:52]}  Qxd5 {[%clk 0:02:47]} 10. Qa4 {[%clk 0:02:45]}  Bd7 {[%clk 0:02:37]} 11. Bc4 {[%clk 0:02:42]}  Nxd4 {[%clk 0:02:00]} 12. cxd4 {[%clk 0:02:39]}  Qd6 {[%clk 0:01:40]} 13. Bb5 {[%clk 0:02:35]}  Rd8 {[%clk 0:01:37]} 14. O-O {[%clk 0:02:21]}  a6 {[%clk 0:01:33]} 15. Bxd7+ {[%clk 0:02:20]}  Qxd7 {[%clk 0:01:31]} 16. Qxd7+ {[%clk 0:02:17]}  Rxd7 {[%clk 0:01:32]} 17. Rac1 {[%clk 0:02:12]}  cxd4 {[%clk 0:01:30]} 18. Rc8+ {[%clk 0:01:55]}  Rd8 {[%clk 0:01:30]} 19. Rc7 {[%clk 0:01:51]}  Rd7 {[%clk 0:01:25]} 20. Rc8+ {[%clk 0:01:49]}  Rd8 {[%clk 0:01:25]} 21. Rxd8+ {[%clk 0:01:50]}  Kxd8 {[%clk 0:01:26]} 22. Nxd4 {[%clk 0:01:49]}  Kd7 {[%clk 0:01:22]} 23. Rd1 {[%clk 0:01:48]}  Be5 {[%clk 0:01:16]} 24. Nf5+ {[%clk 0:01:40]}  Ke6 {[%clk 0:01:11]} 25. Nxe7 {[%clk 0:01:40]}  g5 {[%clk 0:01:02]} 26. Bxg5 {[%clk 0:01:39]}  f6 {[%clk 0:01:03]} 27. Bxf6 {[%clk 0:01:33]}  Bxf6 {[%clk 0:01:01]} 28. Nd5 {[%clk 0:01:32]}  Be5 {[%clk 0:00:56]} 29. f4 {[%clk 0:01:31]}  Bb8 {[%clk 0:00:53]} 30. Kf2 {[%clk 0:01:28]}  Rc8 {[%clk 0:00:51]} 31. Rd2 {[%clk 0:01:24]}  Rd8 {[%clk 0:00:40]} 32. e4 {[%clk 0:01:21]}  Bxf4 {[%clk 0:00:38]} 33. Nxf4+ {[%clk 0:01:20]}  Ke5 {[%clk 0:00:37]} 34. Rxd8 {[%clk 0:01:18]}  Kxf4 {[%clk 0:00:38]} 35. Re8 {[%clk 0:01:17]}  b5 {[%clk 0:00:38]} 36. e5 {[%clk 0:01:18]}  b4 {[%clk 0:00:38]} 37. e6 {[%clk 0:01:18]}  Kf5 {[%clk 0:00:38]} 38. e7 {[%clk 0:01:18]}  Kf6 {[%clk 0:00:38]} 39. Rb8 {[%clk 0:01:16]}  Kxe7 {[%clk 0:00:38]} 40. Rxb4 {[%clk 0:01:16]} 1-0


[Site "https://www.chess.com"]

[Event "Titled Tuesday Blitz June 1 2021"]
[White "Nesterov, Arseniy"]
[Black "Goryachkina, Aleksandra"]
[WhiteFideId "24198455"]
[BlackFideId "4147103"]
[WhiteElo "2441"]
[BlackElo "2441"]
[Result "0-1"]
[Round "11"]
[TimeControl "180+1"]
[Date "2021.06.01"]
[WhiteClock "0:00:03"]
[BlackClock "0:00:12"]

1. d4 {[%clk 0:03:00]}  Nf6 {[%clk 0:02:59]} 2. c4 {[%clk 0:03:01]}  e6 {[%clk 0:02:59]} 3. Nf3 {[%clk 0:03:00]}  d5 {[%clk 0:02:59]} 4. Nc3 {[%clk 0:03:00]}  Nbd7 {[%clk 0:02:59]} 5. Bg5 {[%clk 0:02:59]}  Be7 {[%clk 0:02:59]} 6. e3 {[%clk 0:02:59]}  O-O {[%clk 0:02:58]} 7. Rc1 {[%clk 0:02:59]}  dxc4 {[%clk 0:02:57]} 8. Bxc4 {[%clk 0:02:59]}  a6 {[%clk 0:02:57]} 9. Bd3 {[%clk 0:02:43]}  h6 {[%clk 0:02:52]} 10. Bh4 {[%clk 0:02:37]}  c5 {[%clk 0:02:45]} 11. O-O {[%clk 0:02:34]}  b5 {[%clk 0:02:36]} 12. Bb1 {[%clk 0:02:16]}  Bb7 {[%clk 0:02:32]} 13. dxc5 {[%clk 0:02:13]}  Nxc5 {[%clk 0:02:14]} 14. b4 {[%clk 0:02:11]}  Ncd7 {[%clk 0:01:58]} 15. a3 {[%clk 0:01:57]}  Rc8 {[%clk 0:01:55]} 16. Nd4 {[%clk 0:01:28]}  Ne5 {[%clk 0:01:36]} 17. Qb3 {[%clk 0:01:14]}  Nd5 {[%clk 0:01:26]} 18. Bxe7 {[%clk 0:01:11]}  Qxe7 {[%clk 0:01:20]} 19. Ne4 {[%clk 0:01:07]}  Nc4 {[%clk 0:01:16]} 20. Nc5 {[%clk 0:01:02]}  g6 {[%clk 0:01:03]} 21. Rfd1 {[%clk 0:00:57]}  Ba8 {[%clk 0:00:56]} 22. Nxa6 {[%clk 0:00:25]}  Ndxe3 {[%clk 0:00:36]} 23. fxe3 {[%clk 0:00:25]}  Qg5 {[%clk 0:00:36]} 24. e4 {[%clk 0:00:04]}  Ne3 {[%clk 0:00:32]} 25. Qb2 {[%clk 0:00:04]}  Nxd1 {[%clk 0:00:24]} 26. Rxd1 {[%clk 0:00:05]}  Rfd8 {[%clk 0:00:23]} 27. Re1 {[%clk 0:00:03]}  Qe5 {[%clk 0:00:17]} 28. Rd1 {[%clk 0:00:03]}  Bxe4 {[%clk 0:00:15]} 29. Bxe4 {[%clk 0:00:02]}  Qxe4 {[%clk 0:00:16]} 30. Nc5 {[%clk 0:00:03]}  Qe3+ {[%clk 0:00:16]} 31. Qf2 {[%clk 0:00:02]}  Qxf2+ {[%clk 0:00:16]} 32. Kxf2 {[%clk 0:00:03]}  e5 {[%clk 0:00:17]} 33. Ke3 {[%clk 0:00:01]}  exd4+ {[%clk 0:00:17]} 34. Rxd4 {[%clk 0:00:02]}  Rxd4 {[%clk 0:00:17]} 35. Kxd4 {[%clk 0:00:03]}  Rd8+ {[%clk 0:00:17]} 36. Kc3 {[%clk 0:00:03]}  Kf8 {[%clk 0:00:16]} 37. a4 {[%clk 0:00:04]}  bxa4 {[%clk 0:00:17]} 38. Nxa4 {[%clk 0:00:05]}  Ke7 {[%clk 0:00:17]} 39. b5 {[%clk 0:00:05]}  Kd6 {[%clk 0:00:17]} 40. Kb4 {[%clk 0:00:06]}  Rc8 {[%clk 0:00:17]} 41. Nc3 {[%clk 0:00:04]}  f5 {[%clk 0:00:15]} 42. b6 {[%clk 0:00:02]}  Kc6 {[%clk 0:00:15]} 43. Na4 {[%clk 0:00:03]}  Rd8 {[%clk 0:00:15]} 44. Kc3 {[%clk 0:00:03]}  Ra8 {[%clk 0:00:13]} 45. Kb4 {[%clk 0:00:03]}  Re8 {[%clk 0:00:12]} 46. Kc4 {[%clk 0:00:02]}  Re4+ {[%clk 0:00:12]} 47. Kb3 {[%clk 0:00:02]}  Re2 {[%clk 0:00:12]} 48. Nc3 {[%clk 0:00:02]}  Rxg2 {[%clk 0:00:12]} 49. b7 {[%clk 0:00:03]}  Kxb7 {[%clk 0:00:12]} 0-1


[Site "https://www.chess.com"]

[Event "Titled Tuesday Blitz June 1 2021"]
[White "Nguyen, Van Huy"]
[Black "Vetokhin, Savva"]
[WhiteFideId "12401064"]
[BlackFideId "44144474"]
[WhiteElo "2443"]
[BlackElo "2185"]
[Result "0-1"]
[Round "11"]
[TimeControl "180+1"]
[Date "2021.06.01"]
[WhiteClock "0:01:19"]
[BlackClock "0:01:36"]

1. d4 {[%clk 0:03:00]}  Nf6 {[%clk 0:02:56]} 2. Nf3 {[%clk 0:03:01]}  d5 {[%clk 0:02:52]} 3. c4 {[%clk 0:03:00]}  e6 {[%clk 0:02:52]} 4. g3 {[%clk 0:03:00]}  dxc4 {[%clk 0:02:50]} 5. Bg2 {[%clk 0:03:00]}  Nc6 {[%clk 0:02:51]} 6. O-O {[%clk 0:02:59]}  Rb8 {[%clk 0:02:46]} 7. Bg5 {[%clk 0:02:59]}  h6 {[%clk 0:02:44]} 8. Bxf6 {[%clk 0:02:59]}  Qxf6 {[%clk 0:02:45]} 9. e4 {[%clk 0:02:56]}  b5 {[%clk 0:02:40]} 10. Nc3 {[%clk 0:02:52]}  Bb4 {[%clk 0:02:36]} 11. d5 {[%clk 0:02:45]}  Bxc3 {[%clk 0:02:33]} 12. bxc3 {[%clk 0:02:43]}  Ne5 {[%clk 0:02:28]} 13. Nd4 {[%clk 0:02:35]}  exd5 {[%clk 0:02:24]} 14. exd5 {[%clk 0:02:30]}  O-O {[%clk 0:02:22]} 15. Qd2 {[%clk 0:02:19]}  Bd7 {[%clk 0:02:21]} 16. Rfe1 {[%clk 0:02:15]}  Nd3 {[%clk 0:02:20]} 17. Re3 {[%clk 0:02:12]}  Rfe8 {[%clk 0:02:21]} 18. Bf1 {[%clk 0:01:41]}  Rxe3 {[%clk 0:02:15]} 19. Qxe3 {[%clk 0:01:41]}  Re8 {[%clk 0:02:05]} 20. Qd2 {[%clk 0:01:41]}  Qe5 {[%clk 0:01:49]} 21. Bg2 {[%clk 0:01:37]}  b4 {[%clk 0:01:47]} 22. Rb1 {[%clk 0:01:30]}  a5 {[%clk 0:01:47]} 23. h4 {[%clk 0:01:24]}  Qf6 {[%clk 0:01:44]} 24. Bf1 {[%clk 0:01:19]}  bxc3 {[%clk 0:01:36]} 0-1


[Site "https://www.chess.com"]